fUST/lending_fUST_20250624
["ID","MTS","AMOUNT","RATE_DAILY","PERIOD"]
[367276180,1750727438388,-938.56,0.00019279,3]
[367276182,1750727438397,-703.96,0.00019279,3]
[367276184,1750727438407,-460.0,0.00019279,2]
[367276186,1750727438415,-572.08953804,0.00019279,2]
[367276188,1750727438425,-460.0,0.00019279,2]
[367276190,1750727438434,-483.1,0.00019279,2]
[367276192,1750727438443,-460.0,0.00019279,2]
[367276194,1750727438452,-460.0,0.00019279,2]
[367276196,1750727438461,-460.0,0.00019279,2]
[367276198,1750727438470,-1907.0,0.00019279,2]
[367276200,1750727438480,-2059.76,0.00019279,2]
[367276202,1750727438489,-339.51490891,0.00019279,2]
[367276204,1750727438499,-460.0,0.0001928,2]
[367276206,1750727438508,-184.870615,0.00019281,2]
[367276208,1750727438518,-222.842108,0.00019281,2]
[367276210,1750727438527,-2313.99,0.00019281,2]
[367276212,1750727438537,-789.06,0.00019281,2]
[367276214,1750727438546,-1457.63,0.00019281,2]
[367276216,1750727438555,-460.0,0.00019281,2]
[367276218,1750727438565,-1755.96,0.00019281,2]
[367276220,1750727438574,-3143.29,0.00019281,2]
[367276222,1750727438586,-460.0,0.00019281,2]
[367276224,1750727438595,-996.62,0.00019281,2]
[367276226,1750727438604,-530.52,0.00019281,2]
[367276227,1750727438614,-900.85,0.00019281,2]
[367276230,1750727438624,-2389.78,0.00019281,2]
[367276232,1750727438635,-708.95,0.00019281,2]
[367276234,1750727438644,-495.81,0.00019281,2]
[367276235,1750727438654,-585.34,0.00019281,2]
[367276237,1750727438663,-500.0,0.00019281,2]
[367276239,1750727438672,-460.0,0.00019282,2]
[367276241,1750727438682,-460.0,0.00019282,2]
[367276243,1750727438691,-460.0,0.00019282,2]
[367276245,1750727438700,-460.0,0.00019282,2]
[367276247,1750727438710,-460.0,0.00019282,2]
[367276249,1750727438720,-465.88,0.00019282,2]
[367276251,1750727438731,-460.0,0.00019282,2]
[367276253,1750727438740,-460.0,0.00019282,2]
[367276255,1750727438749,-460.0,0.00019282,2]
[367276257,1750727438758,-460.0,0.00019282,2]
[367276259,1750727438768,-581.59,0.00019282,2]
[367276261,1750727438777,-460.0,0.00019282,2]
[367276263,1750727438786,-460.0,0.00019282,2]
[367276265,1750727438795,-460.0,0.00019282,2]
[367276267,1750727438805,-460.0,0.00019282,2]
[367276270,1750727438814,-460.0,0.00019282,2]
[367276271,1750727438823,-274.75517677,0.00019282,2]
[367276273,1750727438834,-460.0,0.00019282,2]
[367276276,1750727438843,-172.75183776,0.00019282,2]
[367276278,1750727438852,-460.0,0.00019282,2]
[367276279,1750727438862,-460.0,0.00019282,2]
[367276281,1750727438871,-875.07,0.00019282,2]
[367276283,1750727438880,-460.0,0.00019282,2]
[367276285,1750727438889,-657.45,0.00019282,2]
[367276287,1750727438898,-460.0,0.00019282,2]
[367276289,1750727438907,-229.92,0.00019282,2]
[367276291,1750727438917,-460.0,0.00019282,2]
[367276293,1750727438927,-460.0,0.00019282,2]
[367276295,1750727438936,-460.0,0.00019282,2]
[367276297,1750727438946,-224.9724724,0.00019282,2]
[367276299,1750727438955,-571.37,0.00019282,2]
[367276301,1750727438963,-460.0,0.00019282,2]
[367276303,1750727438973,-487.28,0.00019282,2]
[367276305,1750727438982,-460.0,0.00019282,2]
[367276307,1750727438991,-460.0,0.00019282,2]
[367276309,1750727439000,-460.0,0.00019282,2]
[367276311,1750727439009,-460.0,0.00019282,2]
[367276313,1750727439018,-507.16,0.00019282,2]
[367276315,1750727439027,-460.0,0.00019282,2]
[367276317,1750727439036,-475.78,0.00019282,2]
[367276319,1750727439045,-460.0,0.00019282,2]
[367276321,1750727439054,-564.21,0.00019282,2]
[367276323,1750727439063,-460.0,0.00019282,2]
[367276325,1750727439072,-460.0,0.00019282,2]
[367276327,1750727439081,-460.0,0.00019282,2]
[367276329,1750727439091,-915.53,0.00019282,2]
[367276331,1750727439100,-460.0,0.00019282,2]
[367276333,1750727439110,-460.0,0.00019282,2]
[367276335,1750727439119,-668.45,0.00019282,2]
[367276337,1750727439128,-553.83,0.00019282,2]
[367276339,1750727439138,-491.15,0.00019282,2]
[367276341,1750727439148,-213.03,0.00019282,2]
[367276343,1750727439157,-699.29,0.00019282,2]
[367276345,1750727439166,-460.0,0.00019282,2]
[367276347,1750727439175,-460.0,0.00019282,2]
[367276349,1750727439184,-460.0,0.00019282,2]
[367276351,1750727439193,-503.71,0.00019282,2]
[367276353,1750727439202,-805.46,0.00019282,2]
[367276355,1750727439211,-460.0,0.00019282,2]
[367276357,1750727439220,-995.84,0.00019282,2]
[367276359,1750727439230,-460.0,0.00019283,2]
[367276361,1750727439239,-460.0,0.00019283,2]
[367276363,1750727439248,-571.59431699,0.00019283,2]
[367276365,1750727439257,-571.59431699,0.00019283,2]
[367276367,1750727439266,-571.59431699,0.00019283,2]
[367276369,1750727439275,-571.59431699,0.00019283,2]
[367276371,1750727439284,-571.59431699,0.00019283,2]
[367276373,1750727439293,-571.59431699,0.00019283,2]
[367276375,1750727439303,-571.59431699,0.00019283,2]
[367276377,1750727439312,-571.59431699,0.00019283,2]
[367276379,1750727439321,-571.59431699,0.00019283,2]
[367276381,1750727439330,-571.59431699,0.00019283,2]
[367276383,1750727439340,-571.59431699,0.00019283,2]
[367276385,1750727439349,-571.59431699,0.00019283,2]
[367276387,1750727439358,-571.59431699,0.00019283,2]
[367276389,1750727439369,-571.59431699,0.00019283,2]
[367276391,1750727439379,-571.59431699,0.00019283,2]
[367276392,1750727439389,-571.59431699,0.00019283,2]
[367276395,1750727439399,-455.27641695,0.00019283,2]
[367276396,1750727439409,-3245.44,0.00019283,3]
[367276399,1750727439419,-460.0,0.00019284,2]
[367276401,1750727439429,-430.0,0.00019284,2]
[367276403,1750727439438,-460.0,0.00019284,2]
[367276405,1750727439447,-460.0,0.00019284,2]
[367276407,1750727439456,-460.0,0.00019284,2]
[367276409,1750727439465,-460.0,0.00019284,2]
[367276411,1750727439475,-460.0,0.00019284,2]
[367276413,1750727439485,-460.0,0.00019284,2]
[367276415,1750727439494,-460.0,0.00019284,2]
[367276417,1750727439503,-2333.15,0.00019284,2]
[367276419,1750727439512,-460.0,0.00019284,2]
[367276421,1750727439521,-501.40171324,0.00019284,2]
[367276423,1750727439531,-460.0,0.00019284,2]
[367276425,1750727439540,-5576.64,0.00019284,2]
[367276427,1750727439550,-460.0,0.00019284,2]
[367276429,1750727439559,-2070.7,0.00019284,2]
[367276431,1750727439569,-460.0,0.00019284,2]
[367276433,1750727439578,-602.09,0.00019284,2]
[367276435,1750727439591,-623.19,0.00019284,2]
[367276437,1750727439600,-3245.27,0.00019284,2]
[367276439,1750727439609,-746.98,0.00019284,2]
[367276440,1750727439619,-460.0,0.00019284,2]
[367276442,1750727439628,-2206.72,0.00019284,2]
[367276444,1750727439640,-831.87,0.00019284,2]
[367276446,1750727439649,-460.0,0.00019285,2]
[367276448,1750727439661,-460.0,0.00019285,2]
[367276450,1750727439672,-474.35,0.00019285,2]
[367276452,1750727439682,-460.0,0.00019285,2]
[367276454,1750727439692,-460.0,0.00019285,2]
[367276456,1750727439702,-460.0,0.00019285,2]
[367276458,1750727439712,-597.99,0.00019285,2]
[367276461,1750727439721,-460.0,0.00019285,2]
[367276463,1750727439731,-269.0,0.00019285,2]
[367276466,1750727439741,-588.95,0.00019285,2]
[367276468,1750727439751,-460.0,0.00019285,2]
[367276470,1750727439761,-659.41,0.00019285,2]
[367276472,1750727439771,-598.72,0.00019285,2]
[367276475,1750727439781,-460.0,0.00019285,2]
[367276477,1750727439792,-713.01,0.00019285,2]
[367276479,1750727439801,-460.0,0.00019285,2]
[367276481,1750727439811,-460.0,0.00019285,2]
[367276483,1750727439820,-460.0,0.00019285,2]
[367276497,1750727439939,-465.33,0.00019285,2]
[367276499,1750727439953,-460.0,0.00019285,2]
[367276501,1750727439962,-1349.9,0.00019285,2]
[367276503,1750727439971,-517.75,0.00019285,2]
[367276505,1750727439982,-460.0,0.00019285,2]
[367276507,1750727439991,-1112.74,0.00019285,2]
[367276509,1750727440000,-460.0,0.00019285,2]
[367276511,1750727440009,-1141.12,0.00019285,2]
[367276513,1750727440019,-460.0,0.00019286,2]
[367276515,1750727440028,-460.0,0.00019286,2]
[367276517,1750727440037,-537.1,0.00019286,2]
[367276519,1750727440046,-460.0,0.00019286,2]
[367276521,1750727440055,-460.0,0.00019286,2]
[367276523,1750727440064,-430.0,0.00019286,2]
[367276525,1750727440073,-460.0,0.00019286,2]
[367276527,1750727440082,-460.0,0.00019286,2]
[367276529,1750727440091,-232.97140672,0.00019286,2]
[367276531,1750727440100,-460.0,0.00019286,2]
[367276533,1750727440110,-460.0,0.00019286,2]
[367276535,1750727440119,-460.0,0.00019286,2]
[367276537,1750727440130,-460.0,0.00019286,2]
[367276539,1750727440139,-460.0,0.00019286,2]
[367276541,1750727440149,-460.0,0.00019286,2]
[367276542,1750727440158,-460.0,0.00019286,2]
[367276544,1750727440167,-460.0,0.00019286,2]
[367276546,1750727440176,-460.0,0.00019286,2]
[367276548,1750727440186,-460.0,0.00019286,2]
[367276550,1750727440195,-460.0,0.00019286,2]
[367276552,1750727440205,-2183.59,0.00019286,2]
[367276554,1750727440214,-460.0,0.00019286,2]
[367276556,1750727440223,-201.34,0.00019286,2]
[367276558,1750727440232,-460.0,0.00019287,2]
[367276560,1750727440241,-432.13090303,0.00019287,2]
[367276562,1750727440251,-460.0,0.00019287,2]
[367276564,1750727440260,-460.0,0.00019287,2]
[367276566,1750727440269,-1000.0,0.00019287,2]
[367276568,1750727440278,-1000.0,0.00019287,2]
[367276570,1750727440288,-460.0,0.00019287,2]
[367276572,1750727440297,-460.0,0.00019287,2]
[367276574,1750727440307,-460.0,0.00019287,2]
[367276576,1750727440316,-460.0,0.00019287,2]
[367276578,1750727440325,-460.0,0.00019287,2]
[367276580,1750727440334,-460.0,0.00019287,2]
[367276582,1750727440344,-460.0,0.00019287,2]
[367276584,1750727440353,-460.0,0.00019287,2]
[367276586,1750727440362,-460.0,0.00019287,2]
[367276588,1750727440371,-460.0,0.00019287,2]
[367276590,1750727440380,-430.0,0.00019287,2]
[367276591,1750727440390,-460.0,0.00019287,2]
[367276593,1750727440399,-1000.0,0.00019288,2]
[367276595,1750727440408,-1000.0,0.0001929,2]
[367276597,1750727440417,-1000.0,0.00019292,2]
[367276599,1750727440426,-1000.0,0.00019293,2]
[367276601,1750727440435,-1162.64,0.0001932,3]
[367276603,1750727440445,-1750.456,0.00019327,2]
[367276605,1750727440454,-1815.222872,0.00019382,2]
[367276607,1750727440463,-1882.5691868,0.00019437,2]
[367276609,1750727440472,-1041.83374665,0.00019468,2]
[367276611,1750727440481,-234.64,0.00019528,3]
[367276613,1750727440491,-500.0,0.00019537,2]
[367276615,1750727440500,-500.0,0.00019537,2]
[367276617,1750727440509,-500.0,0.00019537,2]
[367276619,1750727440518,-500.0,0.00019537,2]
[367276621,1750727440527,-500.0,0.00019537,2]
[367276623,1750727440537,-500.0,0.00019537,2]
[367276625,1750727440546,-500.0,0.00019537,2]
[367276627,1750727440556,-500.0,0.00019537,2]
[367276629,1750727440565,-500.0,0.00019537,2]
[367276631,1750727440575,-500.0,0.00019537,2]
[367276633,1750727440586,-500.0,0.00019537,2]
[367276635,1750727440596,-500.0,0.00019537,2]
[367276637,1750727440605,-500.0,0.00019537,2]
[367276639,1750727440614,-500.0,0.00019537,2]
[367276641,1750727440623,-500.0,0.00019537,2]
[367276643,1750727440636,-5000.0,0.00019537,2]
[367276645,1750727440649,-25000.0,0.00019537,2]
[367276647,1750727440659,-469.28,0.00019538,3]
[367276649,1750727440669,-234.29404541,0.00019552,2]
[367276651,1750727440678,-460.0,0.00019552,2]
[367276653,1750727440687,-460.0,0.00019552,2]
[367276655,1750727440696,-460.0,0.00019553,2]
[367276657,1750727440705,-460.0,0.00019553,2]
[367276659,1750727440714,-460.0,0.00019553,2]
[367276660,1750727440723,-460.0,0.00019553,2]
[367276662,1750727440734,-1907.0,0.00019553,2]
[367276665,1750727440743,-2059.76,0.00019553,2]
[367276666,1750727440753,-2313.99,0.00019555,2]
[367276668,1750727440762,-789.06,0.00019555,2]
[367276670,1750727440771,-1457.63,0.00019555,2]
[367276672,1750727440780,-460.0,0.00019555,2]
[367276674,1750727440789,-1755.96,0.00019555,2]
[367276676,1750727440799,-3143.29,0.00019555,2]
[367276678,1750727440808,-460.0,0.00019555,2]
[367276680,1750727440818,-996.62,0.00019555,2]
[367276682,1750727440827,-530.52,0.00019555,2]
[367276684,1750727440836,-900.85,0.00019555,2]
[367276686,1750727440846,-2389.78,0.00019555,2]
[367276688,1750727440855,-708.95,0.00019555,2]
[367276690,1750727440865,-495.81,0.00019555,2]
[367276692,1750727440874,-585.34,0.00019555,2]
[367276694,1750727440883,-500.0,0.00019555,2]
[367276696,1750727440892,-460.0,0.00019556,2]
[367276698,1750727440901,-460.0,0.00019556,2]
[367276700,1750727440910,-460.0,0.00019556,2]
[367276702,1750727440919,-465.88,0.00019556,2]
[367276704,1750727440929,-460.0,0.00019556,2]
[367276706,1750727440938,-460.0,0.00019556,2]
[367276708,1750727440947,-581.59,0.00019556,2]
[367276710,1750727440956,-460.0,0.00019556,2]
[367276712,1750727440965,-460.0,0.00019556,2]
[367276714,1750727440975,-460.0,0.00019556,2]
[367276716,1750727440985,-460.0,0.00019556,2]
[367276718,1750727440994,-875.07,0.00019556,2]
[367276720,1750727441003,-343.64860314,0.00019556,2]
[367276722,1750727441011,-657.45,0.00019556,2]
[367276724,1750727441020,-460.0,0.00019556,2]
[367276726,1750727441029,-460.0,0.00019556,2]
[367276728,1750727441039,-460.0,0.00019556,2]
[367276730,1750727441048,-460.0,0.00019556,2]
[367276732,1750727441057,-460.0,0.00019556,2]
[367276734,1750727441065,-507.16,0.00019556,2]
[367276735,1750727441074,-460.0,0.00019556,2]
[367276736,1750727441083,-475.78,0.00019556,2]
[367276737,1750727441093,-460.0,0.00019556,2]
[367276738,1750727441103,-564.21,0.00019556,2]
[367276739,1750727441112,-460.0,0.00019556,2]
[367276740,1750727441121,-460.0,0.00019556,2]
[367276741,1750727441131,-460.0,0.00019556,2]
[367276742,1750727441139,-915.53,0.00019556,2]
[367276743,1750727441149,-460.0,0.00019556,2]
[367276744,1750727441158,-460.0,0.00019556,2]
[367276745,1750727441167,-668.45,0.00019556,2]
[367276746,1750727441175,-553.83,0.00019556,2]
[367276747,1750727441185,-491.15,0.00019556,2]
[367276748,1750727441194,-699.29,0.00019556,2]
[367276749,1750727441203,-460.0,0.00019556,2]
[367276750,1750727441212,-503.71,0.00019556,2]
[367276751,1750727441222,-805.46,0.00019556,2]
[367276752,1750727441231,-460.0,0.00019556,2]
[367276753,1750727441240,-995.84,0.00019556,2]
[367276754,1750727441249,-165.48,0.00019557,2]
[367276755,1750727441259,-195.41,0.00019557,2]
[367276756,1750727441269,-460.0,0.00019558,2]
[367276757,1750727441279,-460.0,0.00019558,2]
[367276758,1750727441289,-456.34398814,0.00019558,2]
[367276759,1750727441298,-460.0,0.00019558,2]
[367276761,1750727441307,-460.0,0.00019558,2]
[367276763,1750727441317,-460.0,0.00019558,2]
[367276765,1750727441326,-460.0,0.00019558,2]
[367276767,1750727441335,-460.0,0.00019558,2]
[367276769,1750727441344,-2333.15,0.00019558,2]
[367276771,1750727441360,-220.82,0.00019558,2]
[367276773,1750727441375,-460.0,0.00019558,2]
[367276775,1750727441383,-5576.64,0.00019558,2]
[367276777,1750727441392,-460.0,0.00019558,2]
[367276779,1750727441401,-2070.7,0.00019558,2]
[367276781,1750727441410,-460.0,0.00019558,2]
[367276782,1750727441419,-602.09,0.00019558,2]
[367276784,1750727441428,-623.19,0.00019558,2]
[367276786,1750727441437,-3245.27,0.00019558,2]
[367276788,1750727441446,-746.98,0.00019558,2]
[367276790,1750727441455,-460.0,0.00019558,2]
[367276792,1750727441464,-2206.72,0.00019558,2]
[367276794,1750727441474,-831.87,0.00019558,2]
[367276796,1750727441484,-460.0,0.00019559,2]
[367276799,1750727441493,-460.0,0.00019559,2]
[367276800,1750727441503,-460.0,0.00019559,2]
[367276802,1750727441512,-460.0,0.00019559,2]
[367276804,1750727441522,-597.99,0.00019559,2]
[367276806,1750727441531,-460.0,0.00019559,2]
[367276808,1750727441540,-588.95,0.00019559,2]
[367276810,1750727441550,-460.0,0.00019559,2]
[367276812,1750727441559,-659.41,0.00019559,2]
[367276814,1750727441568,-598.72,0.00019559,2]
[367276816,1750727441577,-460.0,0.00019559,2]
[367276818,1750727441589,-713.01,0.00019559,2]
[367276820,1750727441598,-460.0,0.00019559,2]
[367276822,1750727441608,-460.0,0.00019559,2]
[367276824,1750727441617,-460.0,0.00019559,2]
[367276826,1750727441627,-465.33,0.00019559,2]
[367276828,1750727441637,-460.0,0.00019559,2]
[367276830,1750727441646,-1349.9,0.00019559,2]
[367276832,1750727441656,-517.75,0.00019559,2]
[367276834,1750727441666,-460.0,0.00019559,2]
[367276836,1750727441675,-1112.74,0.00019559,2]
[367276838,1750727441685,-460.0,0.00019559,2]
[367276840,1750727441694,-1141.12,0.00019559,2]
[367276842,1750727441703,-460.0,0.0001956,2]
[367276844,1750727441712,-537.1,0.0001956,2]
[367276846,1750727441721,-460.0,0.0001956,2]
[367276848,1750727441730,-460.0,0.0001956,2]
[367276850,1750727441739,-460.0,0.0001956,2]
[367276852,1750727441748,-460.0,0.0001956,2]
[367276854,1750727441757,-460.0,0.0001956,2]
[367276856,1750727441766,-460.0,0.0001956,2]
[367276858,1750727441775,-460.0,0.0001956,2]
[367276860,1750727441784,-460.0,0.0001956,2]
[367276862,1750727441794,-460.0,0.0001956,2]
[367276864,1750727441802,-460.0,0.0001956,2]
[367276866,1750727441812,-460.0,0.0001956,2]
[367276867,1750727441821,-460.0,0.0001956,2]
[367276869,1750727441830,-2183.59,0.0001956,2]
[367276871,1750727441839,-460.0,0.0001956,2]
[367276873,1750727441848,-460.0,0.00019561,2]
[367276875,1750727441857,-460.0,0.00019561,2]
[367276877,1750727441867,-526.06,0.00019561,2]
[367276879,1750727441876,-310.67,0.00019561,2]
[367276881,1750727441886,-460.0,0.00019561,2]
[367276883,1750727441895,-460.0,0.00019561,2]
[367276885,1750727441904,-460.0,0.00019561,2]
[367276887,1750727441913,-460.0,0.00019561,2]
[367276889,1750727441922,-460.0,0.00019561,2]
[367276891,1750727441931,-460.0,0.00019561,2]
[367276903,1750727442036,-460.0,0.00019561,2]
[367276906,1750727442045,-460.0,0.00019561,2]
[367276908,1750727442055,-2531.11439212,0.0001973,2]
[367276910,1750727442064,-162.0,0.000198,3]
[367276912,1750727442073,-162.0,0.000198,3]
[367276914,1750727442081,-162.0,0.000198,3]
[367276916,1750727442090,-162.0,0.000198,3]
[367276918,1750727442100,-213.63163053,0.000198,3]
[367276920,1750727442109,-846.53928378,0.000198,3]
[367276922,1750727442118,-12553.69357174,0.000198,3]
[367276924,1750727442128,-314.06139783,0.00019808,2]
[367276926,1750727442138,-460.0,0.00019826,2]
[367276928,1750727442147,-460.0,0.00019826,2]
[367276930,1750727442157,-510.16848737,0.00019826,2]
[367276932,1750727442166,-553.13788572,0.00019826,2]
[367276934,1750727442176,-460.0,0.00019827,2]
[367276936,1750727442185,-460.0,0.00019827,2]
[367276938,1750727442194,-460.0,0.00019827,2]
[367276940,1750727442203,-460.0,0.00019827,2]
[367276942,1750727442213,-1907.0,0.00019827,2]
[367276944,1750727442222,-2059.76,0.00019827,2]
[367276946,1750727442233,-2313.99,0.00019829,2]
[367276948,1750727442242,-789.06,0.00019829,2]
[367276950,1750727442251,-1457.63,0.00019829,2]
[367276952,1750727442261,-460.0,0.00019829,2]
[367276954,1750727442270,-1755.96,0.00019829,2]
[367276956,1750727442279,-3143.29,0.00019829,2]
[367276958,1750727442288,-460.0,0.00019829,2]
[367276960,1750727442298,-996.62,0.00019829,2]
[367276962,1750727442307,-530.52,0.00019829,2]
[367276964,1750727442316,-900.85,0.00019829,2]
[367276966,1750727442326,-2389.78,0.00019829,2]
[367276968,1750727442335,-708.95,0.00019829,2]
[367276970,1750727442344,-495.81,0.00019829,2]
[367276972,1750727442354,-585.34,0.00019829,2]
[367276974,1750727442363,-489.62833172,0.0001983,2]
[367276976,1750727442372,-238.94,0.0001983,2]
[367276978,1750727442381,-460.0,0.0001983,2]
[367276980,1750727442390,-465.88,0.0001983,2]
[367276982,1750727442399,-460.0,0.0001983,2]
[367276984,1750727442408,-581.59,0.0001983,2]
[367276986,1750727442418,-460.0,0.0001983,2]
[367276988,1750727442426,-460.0,0.0001983,2]
[367276990,1750727442435,-460.0,0.0001983,2]
[367276992,1750727442444,-460.0,0.0001983,2]
[367276994,1750727442453,-875.07,0.0001983,2]
[367276996,1750727442462,-657.45,0.0001983,2]
[367276998,1750727442471,-460.0,0.0001983,2]
[367277000,1750727442480,-171.79891993,0.0001983,2]
[367277002,1750727442490,-460.0,0.0001983,2]
[367277005,1750727442499,-460.0,0.0001983,2]
[367277007,1750727442508,-460.0,0.0001983,2]
[367277009,1750727442518,-507.16,0.0001983,2]
[367277011,1750727442527,-460.0,0.0001983,2]
[367277012,1750727442536,-475.78,0.0001983,2]
[367277014,1750727442545,-460.0,0.0001983,2]
[367277016,1750727442554,-564.21,0.0001983,2]
[367277018,1750727442564,-460.0,0.0001983,2]
[367277020,1750727442572,-460.0,0.0001983,2]
[367277022,1750727442582,-460.0,0.0001983,2]
[367277024,1750727442593,-915.53,0.0001983,2]
[367277026,1750727442604,-460.0,0.0001983,2]
[367277028,1750727442614,-460.0,0.0001983,2]
[367277030,1750727442623,-668.45,0.0001983,2]
[367277032,1750727442634,-553.83,0.0001983,2]
[367277035,1750727442643,-491.15,0.0001983,2]
[367277037,1750727442652,-699.29,0.0001983,2]
[367277039,1750727442664,-460.0,0.0001983,2]
[367277041,1750727442673,-503.71,0.0001983,2]
[367277044,1750727442683,-805.46,0.0001983,2]
[367277046,1750727442693,-460.0,0.0001983,2]
[367277048,1750727442703,-995.84,0.0001983,2]
[367277050,1750727442713,-460.0,0.00019832,2]
[367277052,1750727442723,-460.0,0.00019832,2]
[367277054,1750727442733,-388.93557322,0.00019832,2]
[367277056,1750727442742,-460.0,0.00019832,2]
[367277058,1750727442752,-460.0,0.00019832,2]
[367277060,1750727442761,-2333.15,0.00019832,2]
[367277062,1750727442770,-579.0661854,0.00019832,2]
[367277064,1750727442780,-5576.64,0.00019832,2]
[367277066,1750727442789,-460.0,0.00019832,2]
[367277068,1750727442798,-2070.7,0.00019832,2]
[367277070,1750727442807,-460.0,0.00019832,2]
[367277072,1750727442815,-602.09,0.00019832,2]
[367277074,1750727442825,-623.19,0.00019832,2]
[367277076,1750727442834,-3245.27,0.00019832,2]
[367277078,1750727442843,-746.98,0.00019832,2]
[367277079,1750727442852,-460.0,0.00019832,2]
[367277081,1750727442862,-2206.72,0.00019832,2]
[367277083,1750727442871,-831.87,0.00019832,2]
[367277085,1750727442882,-460.0,0.00019833,2]
[367277087,1750727442891,-460.0,0.00019833,2]
[367277089,1750727442900,-460.0,0.00019833,2]
[367277091,1750727442910,-460.0,0.00019833,2]
[367277093,1750727442919,-597.99,0.00019833,2]
[367277095,1750727442929,-460.0,0.00019833,2]
[367277097,1750727442938,-588.95,0.00019833,2]
[367277099,1750727442947,-460.0,0.00019833,2]
[367277101,1750727442957,-659.41,0.00019833,2]
[367277103,1750727442966,-598.72,0.00019833,2]
[367277105,1750727442975,-460.0,0.00019833,2]
[367277107,1750727442985,-713.01,0.00019833,2]
[367277109,1750727442994,-460.0,0.00019833,2]
[367277111,1750727443004,-460.0,0.00019833,2]
[367277113,1750727443013,-460.0,0.00019833,2]
[367277115,1750727443022,-465.33,0.00019833,2]
[367277117,1750727443031,-460.0,0.00019833,2]
[367277119,1750727443040,-1349.9,0.00019833,2]
[367277121,1750727443049,-517.75,0.00019833,2]
[367277123,1750727443059,-460.0,0.00019833,2]
[367277125,1750727443068,-1112.74,0.00019833,2]
[367277127,1750727443077,-515.06996205,0.00019833,2]
[367277129,1750727443086,-1141.12,0.00019833,2]
[367277131,1750727443096,-460.0,0.00019834,2]
[367277133,1750727443105,-537.1,0.00019834,2]
[367277135,1750727443114,-460.0,0.00019834,2]
[367277137,1750727443126,-460.0,0.00019834,2]
[367277139,1750727443135,-460.0,0.00019834,2]
[367277141,1750727443144,-460.0,0.00019834,2]
[367277143,1750727443153,-460.0,0.00019834,2]
[367277146,1750727443162,-460.0,0.00019834,2]
[367277149,1750727443171,-460.0,0.00019834,2]
[367277151,1750727443180,-460.0,0.00019834,2]
[367277154,1750727443190,-223.02936744,0.00019834,2]
[367277156,1750727443200,-460.0,0.00019834,2]
[367277158,1750727443209,-454.63768074,0.00019834,2]
[367277160,1750727443218,-2183.59,0.00019834,2]
[367277162,1750727443229,-460.0,0.00019834,2]
[367277164,1750727443248,-460.0,0.00019835,2]
[367277166,1750727443257,-460.0,0.00019835,2]
[367277168,1750727443266,-460.0,0.00019835,2]
[367277170,1750727443275,-460.0,0.00019835,2]
[367277172,1750727443285,-460.0,0.00019835,2]
[367277174,1750727443295,-460.0,0.00019835,2]
[367277176,1750727443304,-460.0,0.00019835,2]